fUSD/lending_fUSD_20250814
["ID","MTS","AMOUNT","RATE_DAILY","PERIOD"]
[379142849,1755162644547,-447.3913417,0.00039877,15]
[379142850,1755162644556,-160.0,0.00039877,15]
[379142851,1755162644566,-1000.0,0.00039877,15]
[379142852,1755162644575,-160.0,0.00039877,15]
[379142853,1755162644585,-1000.0,0.00039877,15]
[379142854,1755162644594,-463.94482134,0.00039877,15]
[379142855,1755162644603,-1000.0,0.00039877,15]
[379142856,1755162644612,-1000.0,0.00039877,15]
[379142857,1755162644622,-1000.0,0.00039877,15]
[379142858,1755162644632,-160.0,0.00039877,15]
[379142859,1755162644642,-481.11077973,0.00039877,15]
[379142860,1755162644651,-1000.0,0.00039877,15]
[379142861,1755162644661,-1000.0,0.00039877,15]
[379142862,1755162644670,-498.91187858,0.00039877,15]
[379142863,1755162644679,-1000.0,0.00039877,15]
[379142864,1755162644689,-1000.0,0.00039877,15]
[379142865,1755162644699,-177.57208303,0.00039877,15]
[379142866,1755162644708,-1000.0,0.00039877,15]
[379142867,1755162644717,-9274.81107495,0.00039877,15]
[379142868,1755162644727,-9617.97908473,0.00039877,15]
[379142869,1755162644735,-818.57934527,0.00039877,15]
[379142870,1755162644745,-9973.84431086,0.00039877,15]
[379142871,1755162644754,-1000.0,0.00039877,15]
[379142872,1755162644763,-600.0,0.00039877,15]
[379142873,1755162644772,-9886.84988829,0.00039877,15]
[379142874,1755162644781,-1035.38709611,0.00039877,15]
[379142875,1755162644792,-600.0,0.00039877,15]
[379142876,1755162644801,-600.0,0.00039877,15]
[379142877,1755162644811,-600.0,0.00039877,15]
[379142878,1755162644820,-600.0,0.00039877,15]
[379142879,1755162644829,-600.0,0.00039877,15]
[379142880,1755162644839,-600.0,0.00039877,15]
[379142881,1755162644848,-250.0,0.00039877,15]
[379142882,1755162644857,-250.0,0.00039877,15]
[379142883,1755162644866,-250.0,0.00039877,15]
[379142884,1755162644875,-250.0,0.00039877,15]
[379142885,1755162644884,-500.0,0.00039877,15]
[379142886,1755162644893,-379.7166228,0.00039877,15]
[379142887,1755162644902,-250.0,0.00039877,15]
[379142888,1755162644911,-500.0,0.00039877,15]
[379142889,1755162644920,-250.0,0.00039877,15]
[379142890,1755162644929,-500.0,0.00039877,15]
[379142891,1755162644938,-500.0,0.00039877,15]
[379142892,1755162644947,-500.0,0.00039877,15]
[379142893,1755162644957,-250.0,0.00039877,15]
[379142894,1755162644966,-500.0,0.00039877,15]
[379142895,1755162644975,-250.0,0.00039877,15]
[379142896,1755162644984,-500.0,0.00039877,15]
[379142897,1755162644993,-327.00484357,0.00039877,15]
[379142898,1755162645003,-250.0,0.00039877,15]
[379142899,1755162645013,-500.0,0.00039877,15]
[379142900,1755162645023,-250.0,0.00039877,15]
[379142901,1755162645032,-151.0,0.00039877,15]
[379142902,1755162645042,-500.0,0.00039877,15]
[379142903,1755162645052,-151.0,0.00039877,15]
[379142904,1755162645061,-500.0,0.00039877,15]
[379142905,1755162645071,-250.0,0.00039877,15]
[379142906,1755162645080,-151.0,0.00039877,15]
[379142907,1755162645089,-500.0,0.00039877,15]
[379142908,1755162645100,-151.0,0.00039877,15]
[379142909,1755162645121,-151.0,0.00039877,15]
[379142910,1755162645133,-500.0,0.00039877,15]
[379142911,1755162645142,-151.0,0.00039877,15]
[379142912,1755162645151,-474.31150161,0.00039877,15]
[379142913,1755162645161,-151.0,0.00039877,15]
[379142914,1755162645170,-151.0,0.00039877,15]
[379142915,1755162645179,-151.0,0.00039877,15]
[379142916,1755162645189,-151.0,0.00039877,15]
[379142917,1755162645198,-151.0,0.00039877,15]
[379142918,1755162645207,-277.35679052,0.00039877,15]
[379142919,1755162645217,-287.61899177,0.00039877,15]
[379142920,1755162645226,-298.26089446,0.00039877,15]
[379142921,1755162645235,-309.29654756,0.00039877,15]
[379142922,1755162645244,-320.74051982,0.00039877,15]
[379142923,1755162645253,-332.60791905,0.00039877,15]
[379142924,1755162645262,-344.91441206,0.00039877,15]
[379142925,1755162645271,-357.6762453,0.00039877,15]
[379142926,1755162645280,-370.91026638,0.00039877,15]
[379142927,1755162645291,-384.63394623,0.00039877,15]
[379142928,1755162645301,-398.86540225,0.00039877,15]
[379142929,1755162645311,-195.93188428,0.00039879,2]
[379142930,1755162645320,-155.91500149,0.00039879,2]
[379142931,1755162645330,-512.66895555,0.00039879,15]
[379142932,1755162645340,-2500.0,0.00039882,14]
[379142933,1755162645350,-483.32861956,0.0003989,4]
[379142934,1755162645359,-1000.0,0.0003989,30]
[379142935,1755162645368,-2500.0,0.00039891,14]
[379142936,1755162645380,-483.32861956,0.000399,4]
[379142937,1755162645389,-20907.58228662,0.000399,14]
[379142938,1755162645399,-5800.0,0.000399,14]
[379142939,1755162645408,-2500.0,0.000399,14]
[379142940,1755162645418,-1000.0,0.00039904,30]
[379142941,1755162645429,-172.18,0.00039908,2]
[379142942,1755162645438,-966.65723912,0.00039909,4]
[379142943,1755162645455,-166.424431,0.0003991,30]
[379142944,1755162645464,-166.424431,0.0003991,30]
[379142945,1755162645475,-4881.915664,0.0003991,30]
[379142946,1755162645484,-4881.915664,0.0003991,30]
[379142947,1755162645498,-612.384391,0.0003991,30]
[379142948,1755162645507,-612.384391,0.0003991,30]
[379142949,1755162645517,-157.857148,0.0003991,30]
[379142950,1755162645526,-1000.0,0.00039918,30]
[379142951,1755162645535,-249.59871,0.00039919,30]
[379142952,1755162645545,-249.59871,0.00039919,30]
[379142953,1755162645554,-151.0,0.00039919,30]
[379142954,1755162645564,-151.0,0.00039919,30]
[379142956,1755162645574,-151.0,0.00039919,30]
[379142958,1755162645583,-151.0,0.00039919,30]
[379142959,1755162645592,-151.0,0.00039919,30]
[379142960,1755162645601,-1648.203797,0.00039919,30]
[379142961,1755162645610,-1648.203797,0.00039919,30]
[379142962,1755162645619,-999.0,0.00039919,120]
[379142964,1755162645628,-151.47639733,0.00039919,2]
[379142966,1755162645638,-242.13516546,0.00039919,2]
[379142968,1755162645647,-84596.66855604,0.00039919,2]
[379142970,1755162645657,-5502.39511472,0.0003992,15]
[379142972,1755162645666,-2500.0,0.00039921,14]
[379142973,1755162645676,-2500.0,0.0003993,14]
[379142975,1755162645686,-1000.0,0.00039932,30]
[379142977,1755162645695,-905.0,0.00039932,4]
[379142978,1755162645705,-500.0,0.00039932,2]
[379142980,1755162645714,-500.0,0.00039932,4]
[379142982,1755162645724,-297.0,0.00039932,4]
[379142983,1755162645733,-150.0,0.00039932,4]
[379142984,1755162645742,-150.0,0.00039932,4]
[379142985,1755162645752,-500.0,0.00039932,4]
[379142986,1755162645762,-150.0,0.00039933,2]
[379142987,1755162645771,-483.32861956,0.00039935,4]
[379142988,1755162645780,-618.81145652,0.00039938,2]
[379142989,1755162645791,-2500.0,0.00039938,14]
[379142990,1755162645801,-151.0,0.00039945,30]
[379142991,1755162645811,-19785.0,0.00039945,120]
[379142992,1755162645822,-1000.0,0.00039945,30]
[379142993,1755162645831,-2667.0,0.00039945,120]
[379142994,1755162645840,-1331.0,0.00039945,120]
[379142995,1755162645849,-2500.0,0.00039947,14]
[379142996,1755162645860,-151.0,0.00039948,30]
[379142997,1755162645869,-4881.915664,0.00039948,30]
[379142998,1755162645879,-4881.915664,0.00039948,30]
[379142999,1755162645888,-612.384391,0.00039948,30]
[379143000,1755162645897,-612.384391,0.00039948,30]
[379143001,1755162645907,-150.0,0.00039948,12]
[379143002,1755162645916,-150.0,0.00039948,12]
[379143003,1755162645925,-500.0,0.00039948,12]
[379143004,1755162645935,-154.59392805,0.00039948,12]
[379143005,1755162645945,-150.0,0.00039948,12]
[379143006,1755162645954,-150.0,0.00039948,12]
[379143007,1755162645964,-151.22142382,0.00039948,12]
[379143008,1755162645974,-162.61546239,0.00039948,12]
[379143009,1755162645984,-500.0,0.00039948,12]
[379143010,1755162645994,-152.00299053,0.00039948,12]
[379143011,1755162646003,-500.0,0.00039948,12]
[379143012,1755162646013,-500.0,0.00039948,12]
[379143013,1755162646023,-150.0,0.00039948,12]
[379143014,1755162646034,-158.47627965,0.00039948,12]
[379143015,1755162646047,-151.20010376,0.00039948,12]
[379143016,1755162646057,-500.0,0.00039948,12]
[379143017,1755162646067,-500.0,0.00039948,12]
[379143018,1755162646076,-6966.104139,0.00039948,30]
[379143019,1755162646086,-6966.104139,0.00039948,30]
[379143020,1755162646095,-155.495409,0.00039948,30]
[379143021,1755162646104,-155.495409,0.00039948,30]
[379143022,1755162646114,-2500.0,0.00039956,14]
[379143023,1755162646123,-483.32861956,0.00039958,4]
[379143024,1755162646133,-1000.0,0.00039959,30]
[379143025,1755162646143,-1000.0,0.0003996,2]
[379143026,1755162646160,-483.32861956,0.0003996,4]
[379143027,1755162646171,-151.0,0.00039961,30]
[379143028,1755162646180,-151.0,0.00039961,30]
[379143029,1755162646190,-166.424431,0.00039961,30]
[379143030,1755162646199,-166.424431,0.00039961,30]
[379143031,1755162646208,-255.54,0.00039961,2]
[379143032,1755162646217,-2500.0,0.00039965,14]
[379143033,1755162646227,-151.0,0.00039967,30]
[379143034,1755162646236,-151.0,0.00039967,30]
[379143035,1755162646245,-164.247023,0.00039967,30]
[379143036,1755162646254,-164.247023,0.00039967,30]
[379143037,1755162646265,-187.029,0.00039967,30]
[379143038,1755162646274,-187.029,0.00039967,30]
[379143039,1755162646283,-483.32861956,0.00039968,4]
[379143040,1755162646295,-176.0,0.0003997,120]
[379143041,1755162646305,-176.0,0.0003997,120]
[379143043,1755162646314,-1039.76181876,0.00039971,2]
[379143045,1755162646323,-151.0,0.00039971,30]
[379143047,1755162646332,-151.0,0.00039971,30]
[379143048,1755162646341,-211.90349,0.00039971,30]
[379143049,1755162646351,-211.90349,0.00039971,30]
[379143050,1755162646360,-151.0,0.00039971,30]
[379143051,1755162646370,-151.0,0.00039971,30]
[379143052,1755162646384,-151.0,0.00039971,30]
[379143053,1755162646393,-163.528639,0.00039971,30]
[379143054,1755162646404,-151.0,0.00039971,30]
[379143055,1755162646413,-1400.64487,0.00039971,30]
[379143056,1755162646424,-1400.64487,0.00039971,30]
[379143057,1755162646434,-576.795262,0.00039971,30]
[379143058,1755162646443,-576.795262,0.00039971,30]
[379143059,1755162646453,-316.173689,0.00039971,30]
[379143060,1755162646463,-316.173689,0.00039971,30]
[379143061,1755162646473,-226.356888,0.00039971,30]
[379143062,1755162646482,-226.356888,0.00039971,30]
[379143063,1755162646491,-151.0,0.00039972,30]
[379143064,1755162646500,-465.200349,0.00039972,30]
[379143065,1755162646509,-465.200349,0.00039972,30]
[379143066,1755162646518,-333.896585,0.00039972,30]
[379143067,1755162646527,-333.896585,0.00039972,30]
[379143068,1755162646537,-590.158278,0.00039972,30]
[379143069,1755162646547,-590.158278,0.00039972,30]
[379143070,1755162646556,-395.892033,0.00039972,30]
[379143071,1755162646566,-395.892033,0.00039972,30]
[379143072,1755162646575,-151.0,0.00039972,30]
[379143073,1755162646585,-981.461956,0.00039972,30]
[379143074,1755162646594,-981.461956,0.00039972,30]
[379143075,1755162646603,-1703.775562,0.00039972,30]
[379143076,1755162646612,-1703.775562,0.00039972,30]
[379143077,1755162646622,-478.768566,0.00039972,30]
[379143078,1755162646632,-478.768566,0.00039972,30]
[379143079,1755162646642,-901.323938,0.00039972,30]
[379143080,1755162646651,-901.323938,0.00039972,30]
[379143081,1755162646660,-151.0,0.00039972,30]
[379143082,1755162646670,-151.0,0.00039972,30]
[379143083,1755162646679,-211.86673127,0.00039972,30]
[379143084,1755162646689,-151.0,0.00039972,30]
[379143085,1755162647151,-163.658342,0.00039972,30]
[379143086,1755162647173,-163.658342,0.00039972,30]
[379143087,1755162647183,-1875.439691,0.00039972,30]
[379143088,1755162647192,-1875.439691,0.00039972,30]
[379143089,1755162647202,-1000.0,0.00039973,30]
[379143090,1755162647211,-999.0,0.00039973,120]
[379143091,1755162647221,-2500.0,0.00039974,14]
[379143092,1755162647231,-249.59871,0.00039977,30]
[379143093,1755162647240,-249.59871,0.00039977,30]
[379143094,1755162647250,-612.384391,0.00039977,30]
[379143095,1755162647260,-612.384391,0.00039977,30]
[379143096,1755162647269,-1438.43,0.00039977,5]
[379143097,1755162647279,-211.86673127,0.00039978,120]
[379143098,1755162647290,-612.384391,0.00039978,30]
[379143099,1755162647299,-612.384391,0.00039978,30]
[379143100,1755162647309,-612.384391,0.00039978,30]
[379143101,1755162647319,-612.384391,0.00039978,30]
[379143102,1755162647328,-612.384391,0.00039978,30]
[379143103,1755162647337,-612.384391,0.00039978,30]
[379143104,1755162647347,-612.384391,0.00039978,30]
[379143105,1755162647356,-612.384391,0.00039978,30]
[379143106,1755162647365,-155.495409,0.00039978,30]
[379143107,1755162647374,-155.495409,0.00039978,30]
[379143108,1755162647386,-666.0,0.00039979,10]
[379143109,1755162647396,-300.0,0.00039979,10]
[379143110,1755162647405,-300.0,0.00039979,10]
[379143111,1755162647415,-300.0,0.00039979,10]
[379143112,1755162647425,-151.0,0.00039979,30]
[379143113,1755162647435,-151.0,0.00039979,30]
[379143114,1755162647445,-151.0,0.00039979,30]
[379143115,1755162647460,-216.569131,0.00039979,30]
[379143116,1755162647470,-151.0,0.00039979,30]
[379143117,1755162647480,-151.0,0.00039979,30]
[379143118,1755162647490,-151.0,0.00039979,30]
[379143119,1755162647500,-151.0,0.00039979,30]
[379143120,1755162647510,-151.0,0.00039979,30]
[379143121,1755162647520,-151.0,0.00039979,30]
[379143122,1755162647529,-151.0,0.00039979,30]
[379143123,1755162647539,-151.601506,0.00039979,30]
[379143124,1755162647548,-1050.746017,0.00039979,30]
[379143125,1755162647558,-1050.746017,0.00039979,30]
[379143126,1755162647567,-1050.746017,0.00039979,30]
[379143127,1755162647577,-1050.746017,0.00039979,30]
[379143128,1755162647586,-1050.746017,0.00039979,30]
[379143129,1755162647595,-1050.746017,0.00039979,30]
[379143130,1755162647605,-1050.746017,0.00039979,30]
[379143131,1755162647614,-1050.746017,0.00039979,30]
[379143132,1755162647624,-151.0,0.00039979,30]
[379143133,1755162647633,-151.0,0.00039979,30]
[379143134,1755162647643,-151.0,0.00039979,30]
[379143135,1755162647652,-151.0,0.00039979,30]
[379143136,1755162647662,-457.956265,0.00039979,30]
[379143137,1755162647671,-457.956265,0.00039979,30]
[379143138,1755162647680,-457.956265,0.00039979,30]
[379143139,1755162647689,-457.956265,0.00039979,30]
[379143140,1755162647699,-457.956265,0.00039979,30]
[379143141,1755162647708,-457.956265,0.00039979,30]
[379143142,1755162647717,-457.956265,0.00039979,30]
[379143143,1755162647727,-457.956265,0.00039979,30]
[379143144,1755162647736,-300.22,0.00039979,2]
[379143145,1755162647745,-151.0,0.00039979,30]
[379143146,1755162647755,-151.0,0.00039979,30]
[379143147,1755162647764,-151.0,0.00039979,30]
[379143148,1755162647773,-151.0,0.00039979,30]
[379143149,1755162647782,-6966.104139,0.00039979,30]
[379143150,1755162647793,-6966.104139,0.00039979,30]
[379143151,1755162647802,-6966.104139,0.00039979,30]
[379143152,1755162647813,-6966.104139,0.00039979,30]
[379143153,1755162647827,-6966.104139,0.00039979,30]
[379143154,1755162647837,-6966.104139,0.00039979,30]
[379143155,1755162647846,-6966.104139,0.00039979,30]
[379143156,1755162647855,-6966.104139,0.00039979,30]
[379143157,1755162647865,-151.0,0.00039979,30]
[379143158,1755162647875,-151.0,0.00039979,30]
[379143159,1755162647884,-151.0,0.00039979,30]
[379143160,1755162647893,-151.0,0.00039979,30]
[379143161,1755162647903,-155.495409,0.00039979,30]
[379143162,1755162647912,-155.495409,0.00039979,30]
[379143163,1755162647921,-155.495409,0.00039979,30]
[379143164,1755162647931,-155.495409,0.00039979,30]
[379143165,1755162647940,-155.495409,0.00039979,30]
[379143166,1755162647949,-155.495409,0.00039979,30]
[379143167,1755162647959,-176.0,0.0003998,120]
[379143168,1755162647968,-176.0,0.0003998,120]
[379143169,1755162647978,-176.0,0.0003998,120]
[379143170,1755162647988,-179.0,0.0003998,120]
[379143171,1755162647997,-153.583368,0.0003998,30]
[379143172,1755162648008,-151.0,0.0003998,30]
[379143173,1755162648020,-151.0,0.0003998,30]
[379143174,1755162648029,-151.0,0.0003998,30]
[379143175,1755162648039,-152.045229,0.0003998,30]
[379143176,1755162648048,-151.0,0.0003998,30]
[379143177,1755162648058,-151.0,0.0003998,30]
[379143178,1755162648067,-151.0,0.0003998,30]
[379143179,1755162648079,-151.0,0.0003998,30]
[379143180,1755162648089,-151.0,0.0003998,30]
[379143181,1755162648100,-151.0,0.0003998,30]
[379143182,1755162648110,-151.0,0.0003998,30]
[379143183,1755162648120,-151.0,0.0003998,30]
[379143184,1755162648130,-151.0,0.0003998,30]
[379143185,1755162648140,-151.0,0.0003998,30]
[379143186,1755162648157,-151.0,0.0003998,30]
[379143187,1755162648175,-151.0,0.0003998,30]
[379143188,1755162648186,-151.0,0.0003998,30]
[379143189,1755162648198,-151.0,0.0003998,30]
[379143190,1755162648209,-151.0,0.0003998,30]
[379143191,1755162648221,-151.0,0.0003998,30]
[379143192,1755162648231,-151.0,0.0003998,30]
[379143193,1755162648241,-151.0,0.0003998,30]
[379143194,1755162648251,-151.0,0.0003998,30]
[379143195,1755162648260,-151.0,0.0003998,30]
[379143196,1755162648270,-151.0,0.0003998,30]
[379143197,1755162648281,-151.0,0.0003998,30]
[379143198,1755162648292,-151.0,0.0003998,30]
[379143199,1755162648302,-151.35792,0.0003998,30]
[379143200,1755162648313,-1648.203797,0.0003998,30]
[379143201,1755162648322,-1648.203797,0.0003998,30]
[379143202,1755162648332,-1648.203797,0.0003998,30]
[379143203,1755162648342,-1648.203797,0.0003998,30]
[379143204,1755162648353,-1648.203797,0.0003998,30]
[379143205,1755162648363,-1648.203797,0.0003998,30]
[379143206,1755162648373,-1648.203797,0.0003998,30]
[379143207,1755162648387,-1648.203797,0.0003998,30]
[379143208,1755162648397,-151.0,0.0003998,30]
[379143209,1755162648407,-151.0,0.0003998,30]
[379143210,1755162648416,-151.81705,0.0003998,30]
[379143211,1755162648428,-151.0,0.0003998,30]
[379143212,1755162648438,-151.0,0.0003998,30]
[379143213,1755162648448,-709.55562399,0.0003998,10]
[379143214,1755162648460,-300.0,0.0003998,10]
[379143215,1755162648470,-300.0,0.0003998,10]
[379143216,1755162648480,-300.0,0.0003998,10]
[379143217,1755162648490,-300.0,0.0003998,10]
[379143218,1755162648499,-159659.32995012,0.0003998,31]
[379143219,1755162648525,-2120.61846103,0.0003998,31]
[379143220,1755162648543,-18247.6227675,0.0003998,31]
[379143221,1755162648576,-1000.0,0.0003998,31]
[379143222,1755162648588,-872.26117996,0.0003998,31]
[379143223,1755162648651,-313.62008107,0.0003998,31]
[379143224,1755162648667,-4691.2225003,0.0003998,31]
[379143225,1755162648679,-2829.03963396,0.0003998,31]
[379143226,1755162648691,-500.0,0.0003998,31]
[379143227,1755162649650,-242.13516546,0.00039919,2]
[379143228,1755162649660,-644.36086719,0.0003998,31]
[379143229,1755162649671,-11772.0,0.0003998,31]
[379143230,1755162649682,-2138.97642132,0.0003998,31]
[379143231,1755162649932,-9386.25985141,0.0003998,31]
[379143232,1755162649954,-361.61365464,0.0003998,31]
[379143233,1755162649966,-331.96507016,0.0003998,31]
[379143234,1755162656764,300.74722317,0.00030136,120]
[379143238,1755162704372,2000.0,0.00030136,120]
[379143239,1755162709147,440.0,0.0003013,120]
[379143240,1755162722054,300.0,0.00029851,120]
[379143241,1755162722616,300.0,0.00029851,120]
[379143242,1755162722678,300.0,0.00029963,120]
[379143243,1755162723285,500.0,0.00029851,120]
[379143244,1755162723371,500.0,0.00029963,120]
[379143245,1755162728190,250.0,0.00015,2]
[379143248,1755162762614,319.0,0.0003013,120]
[379143296,1755162829219,440.34468207,0.0003013,120]
[379143300,1755162842677,300.0,0.00028821,120]
[379143301,1755162843071,500.0,0.0002739,120]
[379143302,1755162843250,500.0,0.00026018,120]
[379143304,1755162843294,500.0,0.00028821,120]
[379143339,1755162953729,1700.0,0.00029,120]
[379143348,1755163113417,421.46379244,0.00030136,120]
[379143352,1755163173515,179.61,0.00013699,2]
[379143354,1755163271690,782.5046977,0.00030136,120]
[379143379,1755163548429,2733.55447919,0.0001995,15]
[379143380,1755163554365,189.55258765,0.00015,10]
[379143383,1755163567452,4439.82754875,0.00015,2]
[379143384,1755163567476,2262.18676401,0.00015,2]
[379143385,1755163569203,4818.92562448,0.000199,3]
[379143386,1755163589592,2006.89407456,0.00015,2]
[379143397,1755163672555,730.99257992,0.00013,15]
[379143402,1755163716267,-264.33469051,0.00018882,2]
[379143403,1755163716293,-629.25423188,0.00018973,2]
[379143404,1755163716318,-433.15037362,0.00018973,2]
[379143405,1755163716344,-300.0,0.00018998,2]
[379143406,1755163716369,-1526.45319946,0.00018999,2]
[379143407,1755163716394,-1200.0,0.00018999,2]
[379143408,1755163716418,-300.0,0.00018999,2]
[379143409,1755163716443,-850.0,0.00018999,2]
[379143410,1755163716577,-500.0,0.00018999,2]
[379143411,1755163716602,-256.85535278,0.00018999,2]
[379143412,1755163716629,-155.41163402,0.00018999,2]
[379143413,1755163716655,-400.61984334,0.00018999,2]
[379143414,1755163716680,-500.0,0.00018999,2]
[379143415,1755163716706,-170.27491792,0.00018999,2]
[379143416,1755163716733,-503.00524865,0.00018999,2]
[379143417,1755163716757,-706.96066016,0.00018999,2]
[379143418,1755163716782,-666.0,0.00018999,2]
[379143419,1755163716806,-78737.67984766,0.00019,2]
[379143420,1755163724444,2246.50068866,0.0001,2]
[379143425,1755163755072,400.0,0.000181,6]
[379143428,1755163757832,900.0,0.000182,6]
[379143429,1755163759311,1300.0,0.000183,6]
[379143430,1755163761412,1800.0,0.000184,6]
[379143431,1755163763538,2200.0,0.000185,6]
[379143432,1755163765626,400.0,0.000186,6]
[379143433,1755163768337,400.0,0.000187,6]
[379143434,1755163769898,400.0,0.000188,6]
[379143436,1755163771955,400.0,0.000189,6]
[379143443,1755163803572,4000.0,0.0002,4]
[379143444,1755163813633,-280.65083585,0.00018606,2]
[379143445,1755163816002,-197.74660609,0.00018606,2]
[379143448,1755163818269,-276.62060009,0.00018606,2]
[379143449,1755163821850,-229.47174966,0.00018606,2]
[379143450,1755163825345,-216.54493054,0.00018606,2]
[379143451,1755163828399,-262.26475588,0.00018606,2]
[379143452,1755163830013,-131.55373189,0.00018606,2]
[379143453,1755163830036,-88.30050641,0.000187,2]
[379143454,1755163831742,-95.35949359,0.000187,2]
[379143468,1755163832195,-348.30878337,0.000189,2]
[379143469,1755163832205,-22009.58045896,0.000189,2]
[379143470,1755163832214,-194.6629672,0.00018973,2]
[379143471,1755163832223,-500.0,0.00018973,2]
[379143472,1755163832233,-500.0,0.00018973,2]
[379143473,1755163832244,-500.0,0.00018973,2]
[379143474,1755163832253,-500.0,0.00018973,2]
[379143475,1755163832262,-160.7,0.0001899,2]
[379143476,1755163832272,-160.7,0.0001899,2]
[379143477,1755163832281,-160.7,0.0001899,2]
[379143478,1755163832291,-464.61093466,0.0001899,2]
[379143479,1755163832301,-464.61093466,0.0001899,2]
[379143481,1755163832311,-464.61093466,0.0001899,2]
[379143483,1755163832321,-300.0,0.00018998,2]
[379143485,1755163832330,-300.0,0.00018998,2]
[379143487,1755163832341,-1200.0,0.00018998,2]
[379143489,1755163832351,-476.76690707,0.00018999,2]
[379143491,1755163832361,-151.51241682,0.00018999,2]
[379143493,1755163832371,-183.73683494,0.00018999,2]
[379143495,1755163832382,-300.0,0.00018999,2]
[379143496,1755163832391,-666.0,0.00018999,2]
[379143498,1755163832402,-300.0,0.00018999,2]
[379143499,1755163832412,-42252.05776085,0.00019,2]
[379143500,1755163832464,-114204.63636111,0.00019,2]
[379143501,1755163832476,-274.70847692,0.00019,2]
[379143504,1755163832487,-1676.729995,0.00019,2]
[379143506,1755163832499,-48371.99999787,0.00019,2]
[379143508,1755163832510,-298828.872671,0.00019,2]
[379143512,1755163832537,-714.75835227,0.00019,2]
[379143516,1755163832567,-528.4424959,0.00019,2]
[379143518,1755163832579,-750.7940001,0.00019,2]
[379143520,1755163832590,-747.06253279,0.00019,2]
[379143521,1755163832603,-1690.83748651,0.00019,2]
[379143533,1755163838120,-5890062.71701899,0.00019,2]
[379143536,1755163838444,-167.68907047,0.00019,2]
[379143543,1755163839990,-609.8673,0.000189,2]
[379143551,1755163840342,-125.57488897,0.000189,2]
[379143553,1755163840351,-7888.31429282,0.00019,2]
[379143556,1755163840363,-6687642.29786048,0.00019,2]
[379143557,1755163840374,-1409.78130266,0.00019,2]
[379143558,1755163840407,-14461.7367645,0.00019,2]
[379143569,1755163843084,-185.7649517,0.00018873,2]
[379143570,1755163843094,-1039.93504832,0.00019,2]
[379143571,1755163843195,-9438.97567454,0.00019,2]
[379143582,1755163846879,-518.0,0.00019,2]
[379143583,1755163847075,-1281.70239999,0.00019,2]
[379143590,1755163884288,876.98,0.00026172,120]
[379143591,1755163884788,876.98,0.00029443,120]
[379143593,1755163909296,-162.39050641,0.0001862,2]
[379143594,1755163911691,-204.99112723,0.0001862,2]
[379143595,1755163913596,343.21999885,0.0003013,120]
[379143596,1755163914692,-313.17062353,0.0001862,2]
[379143597,1755163917412,-164.83824924,0.0001862,2]
[379143599,1755163922495,-154.84,0.0001862,2]
[379143600,1755163925297,-300.0,0.0001862,2]
[379143601,1755163931266,-266.54209507,0.0001862,2]
[379143602,1755163933031,-152.0,0.0001862,2]
[379143603,1755163935910,-258.95630861,0.0001862,2]
[379143604,1755163938771,-154.36414904,0.0001862,2]
[379143605,1755163941113,-192.40386919,0.0001862,2]
[379143606,1755163945042,-258.73803656,0.0001862,2]
[379143607,1755163948096,-348.57032566,0.0001862,2]
[379143608,1755163950586,-188.81377823,0.0001862,2]
[379143609,1755163953312,-290.82773769,0.0001862,2]
[379143610,1755163955215,-60.51919354,0.0001862,2]